[Event "*** Titled Tuesday Blitz"]
[Site "Chess.com"]
[Date "2019.02.05"]
[Round "4"]
[White "Indianlad"]
[Black "gmcorrales"]
[Result "1-0"]
[WhiteElo "2929"]
[BlackElo "2739"]
[TimeControl "180+2"]
[EndTime "13:49:25 PST"]
[Termination "Indianlad won by checkmate"]

1. Nf3 {[%clk 0:03:01.9]} 1... c5 {[%clk 0:02:59.7]} 2. e4 {[%clk 0:03:02.2]}
2... d6 {[%clk 0:02:57]} 3. d4 {[%clk 0:03:03.5]} 3... cxd4 {[%clk 0:02:57.3]}
4. Qxd4 {[%clk 0:03:05.4]} 4... Nf6 {[%clk 0:02:58.8]} 5. Be2 {[%clk 0:03:02.3]}
5... a6 {[%clk 0:02:58.9]} 6. O-O {[%clk 0:03:02.5]} 6... Nc6 {[%clk 0:02:59.3]}
7. Qe3 {[%clk 0:03:03.9]} 7... g6 {[%clk 0:02:58.3]} 8. Rd1 {[%clk 0:03:03.8]}
8... Bg7 {[%clk 0:02:52.6]} 9. c4 {[%clk 0:03:00.6]} 9... Nd7 {[%clk 0:02:16.4]}
10. Nc3 {[%clk 0:02:59.5]} 10... O-O {[%clk 0:02:16.9]} 11. b3 {[%clk
0:02:47.4]} 11... Nc5 {[%clk 0:02:06]} 12. Bb2 {[%clk 0:02:48.2]} 12... Bg4
{[%clk 0:02:05.2]} 13. h3 {[%clk 0:02:21.4]} 13... Bxf3 {[%clk 0:02:05.9]} 14.
Bxf3 {[%clk 0:02:23.3]} 14... Rc8 {[%clk 0:01:41.2]} 15. Rd2 {[%clk 0:02:20.4]}
15... h5 {[%clk 0:01:34.4]} 16. Rad1 {[%clk 0:02:20]} 16... Kh7 {[%clk
0:01:17.2]} 17. Nd5 {[%clk 0:02:20.7]} 17... Bxb2 {[%clk 0:01:16.1]} 18. Rxb2
{[%clk 0:02:21.1]} 18... e5 {[%clk 0:01:17]} 19. Rbd2 {[%clk 0:02:16.9]} 19...
Ne6 {[%clk 0:01:08.1]} 20. g3 {[%clk 0:02:17.8]} 20... Ncd4 {[%clk 0:01:02.1]}
21. h4 {[%clk 0:02:18.1]} 21... b5 {[%clk 0:00:49]} 22. cxb5 {[%clk 0:02:17.9]}
22... axb5 {[%clk 0:00:50.9]} 23. Bg2 {[%clk 0:02:19.1]} 23... Kg7 {[%clk
0:00:38.8]} 24. Bh3 {[%clk 0:02:19.5]} 24... Rc5 {[%clk 0:00:38.3]} 25. Nc3
{[%clk 0:02:08.1]} 25... b4 {[%clk 0:00:37.6]} 26. Nd5 {[%clk 0:02:08.2]} 26...
Nb5 {[%clk 0:00:29.2]} 27. Bxe6 {[%clk 0:01:56.3]} 27... fxe6 {[%clk 0:00:30.2]}
28. Nxb4 {[%clk 0:01:57.8]} 28... Qf6 {[%clk 0:00:26.7]} 29. Nc2 {[%clk
0:01:44.7]} 29... Rc3 {[%clk 0:00:23.7]} 30. Qe2 {[%clk 0:01:39.8]} 30... Rc5
{[%clk 0:00:10.9]} 31. Rf1 {[%clk 0:01:03.6]} 31... Nd4 {[%clk 0:00:08]} 32.
Nxd4 {[%clk 0:01:04]} 32... exd4 {[%clk 0:00:09.9]} 33. Rc2 {[%clk 0:00:58.4]}
33... Rxc2 {[%clk 0:00:10.1]} 34. Qxc2 {[%clk 0:00:59]} 34... e5 {[%clk
0:00:11.4]} 35. a4 {[%clk 0:00:59.4]} 35... Qf3 {[%clk 0:00:12.4]} 36. a5 {[%clk
0:01:00.2]} 36... d3 {[%clk 0:00:13.8]} 37. Qc7+ {[%clk 0:01:00]} 37... Rf7
{[%clk 0:00:14.8]} 38. Qxd6 {[%clk 0:01:01]} 38... Qe2 {[%clk 0:00:15.8]} 39.
Qxe5+ {[%clk 0:01:01.3]} 39... Kh7 {[%clk 0:00:16.4]} 40. Qd5 {[%clk 0:01:02.2]}
40... Rf3 {[%clk 0:00:16.7]} 41. Qd7+ {[%clk 0:00:58]} 41... Kh6 {[%clk
0:00:17.5]} 42. Qd4 {[%clk 0:00:59.5]} 42... d2 {[%clk 0:00:18.4]} 43. Qh8#
{[%clk 0:01:00.4]} 1-0

[Event "*** Titled Tuesday Blitz"]
[Site "Chess.com"]
[Date "2019.02.05"]
[Round "4"]
[White "idvidal"]
[Black "MehdiHosseinipour"]
[Result "0-1"]
[WhiteElo "2486"]
[BlackElo "2537"]
[TimeControl "180+2"]
[EndTime "13:49:26 PST"]
[Termination "MehdiHosseinipour won by resignation"]

1. c4 {[%clk 0:03:01.9]} 1... Nf6 {[%clk 0:03:00.6]} 2. Nc3 {[%clk 0:03:02.5]}
2... e5 {[%clk 0:03:01.9]} 3. g3 {[%clk 0:03:03.2]} 3... d5 {[%clk 0:03:01.1]}
4. cxd5 {[%clk 0:03:05.1]} 4... Nxd5 {[%clk 0:03:03]} 5. Bg2 {[%clk 0:03:06.5]}
5... Nb6 {[%clk 0:03:04.6]} 6. e3 {[%clk 0:03:07.9]} 6... Be7 {[%clk 0:03:01.5]}
7. Nge2 {[%clk 0:03:08.5]} 7... O-O {[%clk 0:03:01.5]} 8. O-O {[%clk 0:03:09.6]}
8... Nc6 {[%clk 0:03:02.1]} 9. f4 {[%clk 0:03:09]} 9... exf4 {[%clk 0:02:42.7]}
10. Nxf4 {[%clk 0:03:10.9]} 10... Ne5 {[%clk 0:02:38.8]} 11. d4 {[%clk
0:03:01.9]} 11... Ng4 {[%clk 0:02:26.8]} 12. h3 {[%clk 0:02:38.2]} 12... Nf6
{[%clk 0:02:27.8]} 13. e4 {[%clk 0:02:38.1]} 13... c6 {[%clk 0:02:29]} 14. e5
{[%clk 0:02:33.5]} 14... Nfd5 {[%clk 0:02:25.5]} 15. Ncxd5 {[%clk 0:02:31.1]}
15... Nxd5 {[%clk 0:02:17.4]} 16. Nxd5 {[%clk 0:02:30.5]} 16... cxd5 {[%clk
0:02:19.3]} 17. Be3 {[%clk 0:02:28.6]} 17... Be6 {[%clk 0:02:16.8]} 18. Qb3
{[%clk 0:02:24.7]} 18... Qd7 {[%clk 0:02:17.6]} 19. Kh2 {[%clk 0:02:20.8]} 19...
Rac8 {[%clk 0:02:18.6]} 20. Rac1 {[%clk 0:02:19.5]} 20... b5 {[%clk 0:02:13.4]}
21. Rxc8 {[%clk 0:01:43.7]} 21... Rxc8 {[%clk 0:02:15.3]} 22. Rf2 {[%clk
0:01:41.9]} 22... Qc6 {[%clk 0:02:03.1]} 23. Bf1 {[%clk 0:01:30.5]} 23... a6
{[%clk 0:02:02.8]} 24. Bd3 {[%clk 0:01:24.2]} 24... Qd7 {[%clk 0:01:59.1]} 25.
Rc2 {[%clk 0:01:21.4]} 25... g6 {[%clk 0:01:40.5]} 26. Rxc8+ {[%clk 0:01:19.6]}
26... Qxc8 {[%clk 0:01:42.4]} 27. h4 {[%clk 0:01:07.2]} 27... Qd8 {[%clk
0:01:14.6]} 28. Kg2 {[%clk 0:00:25.8]} 28... Qd7 {[%clk 0:01:13]} 29. a4 {[%clk
0:00:15.5]} 29... bxa4 {[%clk 0:01:08.1]} 30. Qb8+ {[%clk 0:00:16]} 30... Kg7
{[%clk 0:01:09.3]} 31. Bxa6 {[%clk 0:00:06.8]} 31... Bf5 {[%clk 0:01:09.1]} 32.
Bb5 {[%clk 0:00:05.3]} 32... Be4+ {[%clk 0:01:10.1]} 33. Kh2 {[%clk 0:00:05.5]}
33... Qg4 {[%clk 0:01:01]} 34. e6 {[%clk 0:00:06.6]} 34... Qf3 {[%clk
0:00:57.6]} 35. Qe5+ {[%clk 0:00:07.5]} 35... Bf6 {[%clk 0:00:59.2]} 36. Bh6+
{[%clk 0:00:04.4]} 36... Kxh6 {[%clk 0:01:00.6]} 0-1

[Event "*** Titled Tuesday Blitz"]
[Site "Chess.com"]
[Date "2019.02.05"]
[Round "4"]
[White "ElGasanov"]
[Black "rasmussvane"]
[Result "0-1"]
[WhiteElo "2718"]
[BlackElo "2753"]
[TimeControl "180+2"]
[EndTime "13:49:33 PST"]
[Termination "rasmussvane won by resignation"]

1. d4 {[%clk 0:03:01.9]} 1... Nf6 {[%clk 0:02:59.9]} 2. Bg5 {[%clk 0:03:03.4]}
2... d5 {[%clk 0:03:00.7]} 3. Nd2 {[%clk 0:03:03.2]} 3... c5 {[%clk 0:02:59.5]}
4. dxc5 {[%clk 0:03:03.5]} 4... e6 {[%clk 0:02:58.3]} 5. e4 {[%clk 0:03:01.2]}
5... Bxc5 {[%clk 0:02:26.5]} 6. exd5 {[%clk 0:03:01.3]} 6... Qxd5 {[%clk
0:02:26]} 7. Ngf3 {[%clk 0:02:56.5]} 7... Nc6 {[%clk 0:02:07]} 8. Bc4 {[%clk
0:02:57.2]} 8... Qf5 {[%clk 0:02:08.1]} 9. O-O {[%clk 0:02:50.8]} 9... Bd7
{[%clk 0:01:59.5]} 10. Bd3 {[%clk 0:02:44.6]} 10... Qd5 {[%clk 0:02:00.2]} 11.
Qe2 {[%clk 0:02:36.1]} 11... Nd4 {[%clk 0:02:01.3]} 12. Nxd4 {[%clk 0:02:35.5]}
12... Qxg5 {[%clk 0:02:01.2]} 13. N4f3 {[%clk 0:02:32.8]} 13... Qh5 {[%clk
0:02:01.4]} 14. Ne4 {[%clk 0:02:25.4]} 14... Nxe4 {[%clk 0:01:56.6]} 15. Bxe4
{[%clk 0:02:24.8]} 15... Rb8 {[%clk 0:01:47.8]} 16. Rfd1 {[%clk 0:02:19.8]}
16... Bc6 {[%clk 0:01:48.6]} 17. Bxc6+ {[%clk 0:01:58.1]} 17... bxc6 {[%clk
0:01:50.5]} 18. Qe4 {[%clk 0:01:53.3]} 18... O-O {[%clk 0:01:49.9]} 19. Ne5
{[%clk 0:01:54.1]} 19... Rxb2 {[%clk 0:01:42.7]} 20. Nd7 {[%clk 0:01:40.7]}
20... Rc8 {[%clk 0:01:43.6]} 21. g4 {[%clk 0:01:22.3]} 21... Bxf2+ {[%clk
0:01:33.6]} 22. Kg2 {[%clk 0:01:12.5]} 22... Qh4 {[%clk 0:01:31]} 23. Ne5 {[%clk
0:01:05.5]} 23... Bb6 {[%clk 0:01:27.5]} 24. Rd2 {[%clk 0:01:05.7]} 24... h5
{[%clk 0:01:10.4]} 25. Rf1 {[%clk 0:00:37.6]} 25... hxg4 {[%clk 0:01:03]} 26.
Nxg4 {[%clk 0:00:32.2]} 26... Qg5 {[%clk 0:01:03.8]} 27. Rd7 {[%clk 0:00:25.3]}
27... Rf8 {[%clk 0:00:50.9]} 28. h4 {[%clk 0:00:25.7]} 28... Qc5 {[%clk
0:00:45.6]} 29. Rd2 {[%clk 0:00:16.9]} 29... Rb4 {[%clk 0:00:44.1]} 30. Qf3
{[%clk 0:00:15.1]} 30... Qe7 {[%clk 0:00:37.1]} 31. Qg3 {[%clk 0:00:14.5]} 31...
Bc7 {[%clk 0:00:33.9]} 32. Qh3 {[%clk 0:00:10.4]} 32... Rd8 {[%clk 0:00:34.3]}
33. Rdf2 {[%clk 0:00:10]} 33... f5 {[%clk 0:00:33.8]} 34. Ne3 {[%clk 0:00:08.6]}
34... Rxh4 {[%clk 0:00:35]} 35. Qf3 {[%clk 0:00:08.6]} 35... Qg5+ {[%clk
0:00:35.8]} 0-1

[Event "*** Titled Tuesday Blitz"]
[Site "Chess.com"]
[Date "2019.02.05"]
[Round "4"]
[White "KRASAVCHIK2002"]
[Black "Godzillator"]
[Result "1-0"]
[WhiteElo "2265"]
[BlackElo "2383"]
[TimeControl "180+2"]
[EndTime "13:49:39 PST"]
[Termination "KRASAVCHIK2002 won by resignation"]

1. e4 {[%clk 0:03:01.9]} 1... c6 {[%clk 0:03:01]} 2. d4 {[%clk 0:03:02]} 2... d5
{[%clk 0:03:02.6]} 3. e5 {[%clk 0:03:03.2]} 3... Bf5 {[%clk 0:03:03.1]} 4. h4
{[%clk 0:03:04.1]} 4... h5 {[%clk 0:03:03.8]} 5. Nf3 {[%clk 0:02:37.2]} 5... e6
{[%clk 0:03:04.5]} 6. c4 {[%clk 0:02:33.4]} 6... Be7 {[%clk 0:03:01.9]} 7. Nc3
{[%clk 0:02:32.7]} 7... Nh6 {[%clk 0:03:01.3]} 8. cxd5 {[%clk 0:02:26]} 8...
exd5 {[%clk 0:03:00.5]} 9. Bg5 {[%clk 0:02:21.8]} 9... Nd7 {[%clk 0:02:51.3]}
10. Bd3 {[%clk 0:02:18.7]} 10... Bxd3 {[%clk 0:02:46.9]} 11. Qxd3 {[%clk
0:02:20.6]} 11... Nf8 {[%clk 0:02:47.7]} 12. O-O-O {[%clk 0:01:44.9]} 12... Ne6
{[%clk 0:02:48.2]} 13. Be3 {[%clk 0:01:46]} 13... Ng4 {[%clk 0:02:47.1]} 14. Kb1
{[%clk 0:01:44.1]} 14... Qb6 {[%clk 0:02:36.4]} 15. Ne2 {[%clk 0:01:39.8]} 15...
O-O-O {[%clk 0:02:24.9]} 16. Rhf1 {[%clk 0:01:26.7]} 16... g6 {[%clk 0:02:13.8]}
17. Nf4 {[%clk 0:01:23.8]} 17... Nxe3 {[%clk 0:02:01.9]} 18. fxe3 {[%clk
0:01:16.4]} 18... Nxf4 {[%clk 0:02:02.2]} 19. exf4 {[%clk 0:01:17.5]} 19... Kb8
{[%clk 0:02:00.7]} 20. f5 {[%clk 0:01:17.2]} 20... gxf5 {[%clk 0:01:55.6]} 21.
Qxf5 {[%clk 0:01:19.1]} 21... Ba3 {[%clk 0:01:51.2]} 22. Rf2 {[%clk 0:01:02.4]}
22... c5 {[%clk 0:01:46.6]} 23. dxc5 {[%clk 0:00:30.8]} 23... Bxc5 {[%clk
0:01:47.1]} 24. Rc2 {[%clk 0:00:29.5]} 24... d4 {[%clk 0:01:25.4]} 25. Ng5
{[%clk 0:00:25.1]} 25... d3 {[%clk 0:01:17.8]} 26. Rxd3 {[%clk 0:00:24.5]} 26...
Rxd3 {[%clk 0:01:18.1]} 27. Qxd3 {[%clk 0:00:25]} 27... Rd8 {[%clk 0:01:19]} 28.
Qe2 {[%clk 0:00:24]} 28... Qg6 {[%clk 0:01:17.1]} 29. a3 {[%clk 0:00:19.2]}
29... Be7 {[%clk 0:01:16.2]} 30. Qc4 {[%clk 0:00:13]} 30... Bxg5 {[%clk
0:01:08.6]} 31. hxg5 {[%clk 0:00:14.4]} 31... Qb6 {[%clk 0:00:49.1]} 32. Qxf7
{[%clk 0:00:11.8]} 32... a6 {[%clk 0:00:50]} 33. e6 {[%clk 0:00:11]} 33... Rd1+
{[%clk 0:00:42.8]} 34. Ka2 {[%clk 0:00:11.5]} 34... Qg1 {[%clk 0:00:43.6]} 35.
Qf8+ {[%clk 0:00:11.9]} 35... Ka7 {[%clk 0:00:42.6]} 36. Qf2+ {[%clk 0:00:13.5]}
36... Qxf2 {[%clk 0:00:42.7]} 37. Rxf2 {[%clk 0:00:15.4]} 37... Re1 {[%clk
0:00:44.1]} 38. Rf6 {[%clk 0:00:16.3]} 38... Kb8 {[%clk 0:00:41.8]} 39. g6
{[%clk 0:00:17.4]} 39... Re2 {[%clk 0:00:42.3]} 40. g7 {[%clk 0:00:18.1]} 40...
Rxg2 {[%clk 0:00:43.5]} 41. e7 {[%clk 0:00:19.5]} 1-0

[Event "*** Titled Tuesday Blitz"]
[Site "Chess.com"]
[Date "2019.02.05"]
[Round "4"]
[White "SantoBlue"]
[Black "TST2014"]
[Result "1-0"]
[WhiteElo "2728"]
[BlackElo "2520"]
[TimeControl "180+2"]
[EndTime "13:49:41 PST"]
[Termination "SantoBlue won by resignation"]

1. e4 {[%clk 0:02:50.6]} 1... c5 {[%clk 0:03:00.3]} 2. Nf3 {[%clk 0:02:49.6]}
2... Nc6 {[%clk 0:03:00.9]} 3. d4 {[%clk 0:02:50.6]} 3... cxd4 {[%clk 0:03:02]}
4. Nxd4 {[%clk 0:02:52.5]} 4... Nf6 {[%clk 0:03:03.2]} 5. Nc3 {[%clk 0:02:53.4]}
5... d6 {[%clk 0:03:04.6]} 6. Bg5 {[%clk 0:02:54.1]} 6... e6 {[%clk 0:03:05.6]}
7. Qd2 {[%clk 0:02:55.1]} 7... a6 {[%clk 0:03:06.9]} 8. O-O-O {[%clk 0:02:56.4]}
8... Bd7 {[%clk 0:03:08.2]} 9. f4 {[%clk 0:02:57.7]} 9... h6 {[%clk 0:03:09.4]}
10. Bxf6 {[%clk 0:02:55.9]} 10... Qxf6 {[%clk 0:03:10]} 11. Nf3 {[%clk
0:02:57.1]} 11... Qd8 {[%clk 0:03:10.7]} 12. Kb1 {[%clk 0:02:56.2]} 12... Qc7
{[%clk 0:03:11.2]} 13. Bd3 {[%clk 0:02:52.2]} 13... Be7 {[%clk 0:03:11.3]} 14.
g4 {[%clk 0:02:53.4]} 14... O-O-O {[%clk 0:03:11.6]} 15. h4 {[%clk 0:02:53.4]}
15... Kb8 {[%clk 0:03:11.5]} 16. g5 {[%clk 0:02:54.1]} 16... Bc8 {[%clk
0:02:57.8]} 17. Rhe1 {[%clk 0:02:51.9]} 17... hxg5 {[%clk 0:02:49.5]} 18. hxg5
{[%clk 0:02:52.7]} 18... Rh3 {[%clk 0:02:49]} 19. Qg2 {[%clk 0:02:53]} 19...
Rdh8 {[%clk 0:02:49.7]} 20. a3 {[%clk 0:02:51.1]} 20... g6 {[%clk 0:02:46.4]}
21. Rh1 {[%clk 0:02:50.3]} 21... R3h5 {[%clk 0:02:28.2]} 22. Rhe1 {[%clk
0:02:49.3]} 22... Qa5 {[%clk 0:02:20.5]} 23. Bc4 {[%clk 0:02:43]} 23... Qc5
{[%clk 0:02:19.4]} 24. Bb3 {[%clk 0:02:43.2]} 24... b5 {[%clk 0:02:15.9]} 25.
Ne2 {[%clk 0:02:22.3]} 25... Bb7 {[%clk 0:02:13]} 26. Ng3 {[%clk 0:02:18.9]}
26... Rh3 {[%clk 0:02:13.6]} 27. Rh1 {[%clk 0:02:09.7]} 27... Rxh1 {[%clk
0:02:14.2]} 28. Nxh1 {[%clk 0:02:06.8]} 28... Qe3 {[%clk 0:02:13.1]} 29. Qg3
{[%clk 0:01:56.7]} 29... Nd4 {[%clk 0:02:07.6]} 30. Nxd4 {[%clk 0:01:40.2]}
30... Qxe4 {[%clk 0:01:42.1]} 31. Nf2 {[%clk 0:01:38.4]} 31... Qg2 {[%clk
0:01:35.5]} 32. Qxg2 {[%clk 0:01:36.5]} 32... Bxg2 {[%clk 0:01:36.8]} 33. a4
{[%clk 0:01:35]} 33... b4 {[%clk 0:01:35.3]} 34. a5 {[%clk 0:01:34.9]} 34... d5
{[%clk 0:01:32.5]} 35. Nc6+ {[%clk 0:01:31.6]} 35... Kc7 {[%clk 0:01:33.6]} 36.
Nxe7 {[%clk 0:01:33.5]} 36... Rh4 {[%clk 0:01:31.4]} 37. Nd3 {[%clk 0:01:31.8]}
37... Be4 {[%clk 0:01:31]} 38. Rf1 {[%clk 0:01:24.3]} 38... Rh8 {[%clk
0:01:25.7]} 39. Nc5 {[%clk 0:01:22.7]} 39... Kd6 {[%clk 0:01:18.9]} 40. Nxe4+
{[%clk 0:01:22.7]} 40... dxe4 {[%clk 0:01:19.8]} 41. Re1 {[%clk 0:01:24]} 41...
Kxe7 {[%clk 0:01:19.1]} 42. Rxe4 {[%clk 0:01:25.3]} 42... Rb8 {[%clk 0:01:18.5]}
43. Bc4 {[%clk 0:01:24.5]} 43... Ra8 {[%clk 0:01:17.7]} 44. Bd3 {[%clk
0:01:25.5]} 44... Rb8 {[%clk 0:01:11.6]} 45. Bxa6 {[%clk 0:01:25.1]} 45... Ra8
{[%clk 0:01:13.1]} 46. Bd3 {[%clk 0:01:24.9]} 46... b3 {[%clk 0:01:10.2]} 47. a6
{[%clk 0:01:24.7]} 47... bxc2+ {[%clk 0:01:11.3]} 48. Kxc2 {[%clk 0:01:26.3]}
48... Kd6 {[%clk 0:01:12.6]} 49. Ra4 {[%clk 0:01:26.5]} 49... Ra7 {[%clk
0:01:12.3]} 50. Be4 {[%clk 0:01:27.4]} 50... Kc5 {[%clk 0:01:08.2]} 51. Bb7
{[%clk 0:01:28.1]} 51... Kb5 {[%clk 0:01:09.4]} 52. b3 {[%clk 0:01:29.4]} 52...
Kb6 {[%clk 0:01:09.1]} 53. Rc4 {[%clk 0:01:28.6]} 53... Rxb7 {[%clk 0:01:04.8]}
54. axb7 {[%clk 0:01:28.6]} 54... Kxb7 {[%clk 0:01:06.3]} 55. Kd3 {[%clk
0:01:28.8]} 55... Kb6 {[%clk 0:01:07.7]} 56. Ke4 {[%clk 0:01:29.8]} 56... Kb5
{[%clk 0:01:09.1]} 57. Ke5 {[%clk 0:01:29.1]} 1-0

[Event "*** Titled Tuesday Blitz"]
[Site "Chess.com"]
[Date "2019.02.05"]
[Round "4"]
[White "MatthewG-p4p"]
[Black "Gordima"]
[Result "1-0"]
[WhiteElo "2675"]
[BlackElo "2674"]
[TimeControl "180+2"]
[EndTime "13:49:48 PST"]
[Termination "MatthewG-p4p won on time"]

1. c4 {[%clk 0:03:01.9]} 1... g6 {[%clk 0:02:53.9]} 2. g3 {[%clk 0:03:01.4]}
2... Bg7 {[%clk 0:02:55.3]} 3. Bg2 {[%clk 0:03:03]} 3... c5 {[%clk 0:02:51]} 4.
Nc3 {[%clk 0:03:04]} 4... Nc6 {[%clk 0:02:51.5]} 5. Nf3 {[%clk 0:03:01.2]} 5...
d6 {[%clk 0:02:52.8]} 6. O-O {[%clk 0:03:02.2]} 6... e6 {[%clk 0:02:54.2]} 7. e3
{[%clk 0:03:01.7]} 7... Nge7 {[%clk 0:02:54.8]} 8. d4 {[%clk 0:03:03]} 8... O-O
{[%clk 0:02:56.5]} 9. b3 {[%clk 0:03:04.2]} 9... b6 {[%clk 0:02:55.8]} 10. Bb2
{[%clk 0:03:04.7]} 10... Bb7 {[%clk 0:02:57.3]} 11. Qd2 {[%clk 0:03:04]} 11...
cxd4 {[%clk 0:02:41.5]} 12. Nxd4 {[%clk 0:02:57.7]} 12... d5 {[%clk 0:02:35.9]}
13. Nxc6 {[%clk 0:02:44.6]} 13... Bxc6 {[%clk 0:02:37.8]} 14. cxd5 {[%clk
0:02:43]} 14... Nxd5 {[%clk 0:02:34.5]} 15. Nxd5 {[%clk 0:02:42.6]} 15... Bxd5
{[%clk 0:02:19.8]} 16. Bxg7 {[%clk 0:02:11.1]} 16... Bxg2 {[%clk 0:02:09.5]} 17.
Qxd8 {[%clk 0:02:09.3]} 17... Rfxd8 {[%clk 0:02:08.3]} 18. Kxg2 {[%clk
0:02:10.7]} 18... Kxg7 {[%clk 0:02:09.1]} 19. Rfd1 {[%clk 0:02:10.1]} 19... f5
{[%clk 0:02:06.5]} 20. Rac1 {[%clk 0:02:05.1]} 20... Rxd1 {[%clk 0:02:01.6]} 21.
Rxd1 {[%clk 0:02:05.4]} 21... Rf8 {[%clk 0:02:03.1]} 22. f4 {[%clk 0:01:59.2]}
22... Rf7 {[%clk 0:02:03.1]} 23. Kf3 {[%clk 0:02:00.3]} 23... Rc7 {[%clk
0:02:04.1]} 24. Rd2 {[%clk 0:01:59.1]} 24... Kf6 {[%clk 0:02:04.6]} 25. h3
{[%clk 0:01:56.1]} 25... h6 {[%clk 0:01:53.6]} 26. g4 {[%clk 0:01:56.4]} 26...
fxg4+ {[%clk 0:01:53.9]} 27. hxg4 {[%clk 0:01:57.4]} 27... h5 {[%clk 0:01:55.4]}
28. Rh2 {[%clk 0:01:55.7]} 28... Rh7 {[%clk 0:01:38.9]} 29. Kg3 {[%clk
0:01:49.7]} 29... e5 {[%clk 0:01:39.1]} 30. Rc2 {[%clk 0:01:43.5]} 30... exf4+
{[%clk 0:01:38]} 31. exf4 {[%clk 0:01:43.9]} 31... Re7 {[%clk 0:01:23.7]} 32.
Rc6+ {[%clk 0:01:40.6]} 32... Kg7 {[%clk 0:01:20.6]} 33. gxh5 {[%clk 0:01:41]}
33... gxh5 {[%clk 0:01:21.1]} 34. Kh4 {[%clk 0:01:41.7]} 34... Re2 {[%clk
0:01:14.4]} 35. Kxh5 {[%clk 0:01:37.6]} 35... Rxa2 {[%clk 0:01:14.8]} 36. Kg5
{[%clk 0:01:37.5]} 36... Rd2 {[%clk 0:00:48.3]} 37. Rc7+ {[%clk 0:01:37.3]}
37... Kf8 {[%clk 0:00:49]} 38. f5 {[%clk 0:01:32.6]} 38... Rd6 {[%clk
0:00:18.7]} 39. Rxa7 {[%clk 0:01:32.2]} 39... Rc6 {[%clk 0:00:18.1]} 40. Rb7
{[%clk 0:01:28.3]} 40... Rd6 {[%clk 0:00:18.3]} 41. b4 {[%clk 0:01:28.6]} 41...
Rc6 {[%clk 0:00:17.6]} 42. b5 {[%clk 0:01:29.1]} 42... Rd6 {[%clk 0:00:19.4]}
43. Rc7 {[%clk 0:01:25.7]} 43... Rd5 {[%clk 0:00:13.3]} 44. Kg6 {[%clk
0:01:24.4]} 44... Rxb5 {[%clk 0:00:11.6]} 45. f6 {[%clk 0:01:19.4]} 45... Re5
{[%clk 0:00:09.1]} 46. Rc8+ {[%clk 0:01:18.8]} 46... Re8 {[%clk 0:00:09.9]} 47.
Rxe8+ {[%clk 0:01:20.1]} 1-0

[Event "*** Titled Tuesday Blitz"]
[Site "Chess.com"]
[Date "2019.02.05"]
[Round "4"]
[White "Gubajdullin"]
[Black "Antipov_Mikhail_Al"]
[Result "0-1"]
[WhiteElo "2479"]
[BlackElo "2721"]
[TimeControl "180+2"]
[EndTime "13:49:48 PST"]
[Termination "Antipov_Mikhail_Al won on time"]

1. d4 {[%clk 0:03:01.9]} 1... Nf6 {[%clk 0:03:00.7]} 2. Bf4 {[%clk 0:03:02.7]}
2... c6 {[%clk 0:03:01.4]} 3. Nd2 {[%clk 0:03:01.7]} 3... Qb6 {[%clk 0:03:02.6]}
4. Nb3 {[%clk 0:02:51.5]} 4... a5 {[%clk 0:03:03.6]} 5. a4 {[%clk 0:02:51.5]}
5... d6 {[%clk 0:03:04.5]} 6. e3 {[%clk 0:02:50.3]} 6... Be6 {[%clk 0:03:05.6]}
7. Nf3 {[%clk 0:02:49.3]} 7... Bxb3 {[%clk 0:02:58]} 8. cxb3 {[%clk 0:02:49.8]}
8... Qb4+ {[%clk 0:02:57.1]} 9. Nd2 {[%clk 0:02:47.7]} 9... Ne4 {[%clk
0:02:58.1]} 10. Bd3 {[%clk 0:02:46]} 10... Nxd2 {[%clk 0:02:59]} 11. Qxd2 {[%clk
0:02:47.1]} 11... Qxb3 {[%clk 0:03:00.7]} 12. O-O {[%clk 0:02:46.9]} 12... g6
{[%clk 0:02:53.1]} 13. Rfb1 {[%clk 0:02:34.7]} 13... Bg7 {[%clk 0:02:45.1]} 14.
Ra3 {[%clk 0:02:34.7]} 14... Qb4 {[%clk 0:02:37.4]} 15. Qc2 {[%clk 0:02:34.6]}
15... Qb6 {[%clk 0:02:38.4]} 16. Bg5 {[%clk 0:02:19.1]} 16... Na6 {[%clk
0:02:35.8]} 17. Bf1 {[%clk 0:01:58.2]} 17... Nb4 {[%clk 0:02:36.1]} 18. Qd2
{[%clk 0:01:56.8]} 18... Qc7 {[%clk 0:02:34.4]} 19. Rd1 {[%clk 0:01:55.8]} 19...
O-O {[%clk 0:02:35.1]} 20. e4 {[%clk 0:01:56.7]} 20... Rfe8 {[%clk 0:02:26.5]}
21. Rh3 {[%clk 0:01:56.7]} 21... d5 {[%clk 0:02:09.3]} 22. Bf4 {[%clk
0:01:51.8]} 22... Qb6 {[%clk 0:02:07.8]} 23. Bh6 {[%clk 0:01:37.8]} 23... Bh8
{[%clk 0:02:07.9]} 24. e5 {[%clk 0:01:23.4]} 24... c5 {[%clk 0:02:08.1]} 25. Be3
{[%clk 0:01:17.6]} 25... Qe6 {[%clk 0:01:58.8]} 26. f4 {[%clk 0:01:11]} 26...
cxd4 {[%clk 0:01:54.9]} 27. Bxd4 {[%clk 0:01:11.3]} 27... Bg7 {[%clk 0:01:56.4]}
28. Bb5 {[%clk 0:01:07.2]} 28... Rec8 {[%clk 0:01:56.1]} 29. Rf1 {[%clk
0:01:02.6]} 29... Rc2 {[%clk 0:01:53.8]} 30. Qd1 {[%clk 0:01:01.8]} 30... Rac8
{[%clk 0:01:51.3]} 31. Rhf3 {[%clk 0:00:58.7]} 31... Qg4 {[%clk 0:01:49.5]} 32.
Bf2 {[%clk 0:00:40.5]} 32... Rxb2 {[%clk 0:01:37.9]} 33. h3 {[%clk 0:00:33.6]}
33... Qf5 {[%clk 0:01:38.8]} 34. Bb6 {[%clk 0:00:28.9]} 34... Rcc2 {[%clk
0:01:36.8]} 35. Rg3 {[%clk 0:00:25.3]} 35... Qe4 {[%clk 0:01:34.8]} 36. Qg4
{[%clk 0:00:22.6]} 36... h5 {[%clk 0:01:31.6]} 37. Qf3 {[%clk 0:00:17.3]} 37...
h4 {[%clk 0:01:23.4]} 38. Qxe4 {[%clk 0:00:14.9]} 38... dxe4 {[%clk 0:01:25.3]}
39. Rg4 {[%clk 0:00:15.6]} 39... Nd5 {[%clk 0:01:25.3]} 40. Bd4 {[%clk
0:00:10.8]} 40... Rb4 {[%clk 0:01:26.1]} 41. Ba7 {[%clk 0:00:08.5]} 41... b6
{[%clk 0:01:17.2]} 42. Re1 {[%clk 0:00:07.9]} 42... e6 {[%clk 0:01:08.2]} 43.
Rxh4 {[%clk 0:00:05.8]} 43... Bf8 {[%clk 0:01:09.3]} 44. Bb8 {[%clk 0:00:04.8]}
44... Bc5+ {[%clk 0:01:10.1]} 45. Kh1 {[%clk 0:00:04.9]} 45... Bf2 {[%clk
0:01:12]} 0-1